[Event "Late-Titled-Tuesday-Blitz-March-12-2024"]
[Site "Chess.com"]
[Date "2024.03.12"]
[Round "2"]
[White "wild3000"]
[Black "HaryKane"]
[Result "0-1"]
[WhiteElo "2407"]
[BlackElo "2602"]
[TimeControl "180+1"]
[EndTime "14:17:51 PDT"]
[Termination "HaryKane won by checkmate"]

1. d4 {[%clk 0:02:51.6]} 1... e6 {[%clk 0:02:59.4]} 2. Nf3 {[%clk 0:02:51.7]}
2... d5 {[%clk 0:02:56]} 3. e3 {[%clk 0:02:51]} 3... f5 {[%clk 0:02:55.8]} 4. c4
{[%clk 0:02:50.4]} 4... Nf6 {[%clk 0:02:54.5]} 5. Nc3 {[%clk 0:02:51.3]} 5... c6
{[%clk 0:02:53.3]} 6. c5 {[%clk 0:02:48.1]} 6... b6 {[%clk 0:02:52.9]} 7. b4
{[%clk 0:02:43.7]} 7... a5 {[%clk 0:02:51.9]} 8. b5 {[%clk 0:02:40.3]} 8... bxc5
{[%clk 0:02:50.9]} 9. dxc5 {[%clk 0:02:40.4]} 9... Bxc5 {[%clk 0:02:42.2]} 10.
Bb2 {[%clk 0:02:29.3]} 10... O-O {[%clk 0:02:31.2]} 11. Be2 {[%clk 0:02:26.9]}
11... cxb5 {[%clk 0:02:18.8]} 12. Bxb5 {[%clk 0:02:19.9]} 12... Ba6 {[%clk
0:02:16]} 13. O-O {[%clk 0:02:17.5]} 13... Qe7 {[%clk 0:02:13.5]} 14. a4 {[%clk
0:02:13.3]} 14... Nbd7 {[%clk 0:02:00.2]} 15. Qe2 {[%clk 0:02:10.3]} 15... Bxb5
{[%clk 0:01:57.2]} 16. Nxb5 {[%clk 0:02:10.2]} 16... Ne4 {[%clk 0:01:53.1]} 17.
Nfd4 {[%clk 0:02:01.8]} 17... Rfc8 {[%clk 0:01:44.7]} 18. Rfc1 {[%clk
0:01:59.8]} 18... Nb6 {[%clk 0:01:30.7]} 19. f3 {[%clk 0:01:49.9]} 19... Nf6
{[%clk 0:01:23.3]} 20. Nb3 {[%clk 0:01:44]} 20... Bb4 {[%clk 0:01:13]} 21. Bd4
{[%clk 0:01:03.4]} 21... Nc4 {[%clk 0:01:07.7]} 22. Rc2 {[%clk 0:00:40.2]} 22...
e5 {[%clk 0:01:00.6]} 23. Bc3 {[%clk 0:00:40.2]} 23... Bxc3 {[%clk 0:00:59.6]}
24. Rxc3 {[%clk 0:00:40.4]} 24... Qb4 {[%clk 0:00:50.3]} 25. Rac1 {[%clk
0:00:38.6]} 25... Rc6 {[%clk 0:00:39.8]} 26. Nd2 {[%clk 0:00:38]} 26... Qxa4
{[%clk 0:00:33]} 27. Nxc4 {[%clk 0:00:34.3]} 27... Qxb5 {[%clk 0:00:33.2]} 28.
Qb2 {[%clk 0:00:23.8]} 28... Qxb2 {[%clk 0:00:27.4]} 29. Nxb2 {[%clk 0:00:24.7]}
29... Rxc3 {[%clk 0:00:24.3]} 30. Rxc3 {[%clk 0:00:25.6]} 30... Rb8 {[%clk
0:00:22.4]} 31. Nd3 {[%clk 0:00:23.7]} 31... e4 {[%clk 0:00:20.5]} 32. Nf4
{[%clk 0:00:20]} 32... a4 {[%clk 0:00:18.1]} 33. Ra3 {[%clk 0:00:18.8]} 33...
Rb4 {[%clk 0:00:16]} 34. Ne6 {[%clk 0:00:16.9]} 34... Nd7 {[%clk 0:00:10.7]} 35.
Nc7 {[%clk 0:00:15.9]} 35... Nb6 {[%clk 0:00:09.4]} 36. Kf2 {[%clk 0:00:15.7]}
36... Nc4 {[%clk 0:00:07.6]} 37. Ra1 {[%clk 0:00:14.3]} 37... Rb2+ {[%clk
0:00:07.3]} 38. Kg3 {[%clk 0:00:13.9]} 38... Nxe3 {[%clk 0:00:07.1]} 39. Kf4
{[%clk 0:00:11]} 39... Nxg2+ {[%clk 0:00:06.3]} 40. Kxf5 {[%clk 0:00:11.4]}
40... e3 {[%clk 0:00:06.4]} 41. Nxd5 {[%clk 0:00:11.1]} 41... e2 {[%clk
0:00:05.5]} 42. Rxa4 {[%clk 0:00:10]} 42... g6+ {[%clk 0:00:03.1]} 43. Kf6
{[%clk 0:00:08.8]} 43... Rb8 {[%clk 0:00:03.8]} 44. Ne7+ {[%clk 0:00:06.8]}
44... Kh8 {[%clk 0:00:04]} 45. Kg5 {[%clk 0:00:02.1]} 45... e1=Q {[%clk
0:00:04.2]} 46. Nxg6+ {[%clk 0:00:03]} 46... hxg6 {[%clk 0:00:04.1]} 47. Kxg6
{[%clk 0:00:03.3]} 47... Qe6+ {[%clk 0:00:03.6]} 48. Kg5 {[%clk 0:00:03.3]}
48... Rg8+ {[%clk 0:00:04.2]} 49. Kh5 {[%clk 0:00:01.3]} 49... Qg6# {[%clk
0:00:04.2]} 0-1

[Event "Late-Titled-Tuesday-Blitz-March-12-2024"]
[Site "Chess.com"]
[Date "2024.03.12"]
[Round "2"]
[White "GothamChess"]
[Black "sergoy"]
[Result "0-1"]
[WhiteElo "2687"]
[BlackElo "3027"]
[TimeControl "180+1"]
[EndTime "14:17:52 PDT"]
[Termination "sergoy won by checkmate"]

1. e4 {[%clk 0:03:00.9]} 1... c5 {[%clk 0:02:58.4]} 2. Nc3 {[%clk 0:03:01.6]}
2... Nc6 {[%clk 0:02:57.6]} 3. Bb5 {[%clk 0:03:02.2]} 3... g6 {[%clk 0:02:53.4]}
4. Bxc6 {[%clk 0:03:01.3]} 4... dxc6 {[%clk 0:02:54]} 5. d3 {[%clk 0:03:01.7]}
5... Bg7 {[%clk 0:02:54.3]} 6. f4 {[%clk 0:03:00.3]} 6... Nf6 {[%clk 0:02:50.4]}
7. Nf3 {[%clk 0:02:58.2]} 7... O-O {[%clk 0:02:46.5]} 8. O-O {[%clk 0:02:55.8]}
8... b6 {[%clk 0:02:41]} 9. Qe1 {[%clk 0:02:52.9]} 9... Bg4 {[%clk 0:02:24.5]}
10. Qh4 {[%clk 0:02:41.4]} 10... Bxf3 {[%clk 0:02:24.1]} 11. Rxf3 {[%clk
0:02:41.3]} 11... e6 {[%clk 0:02:18]} 12. Be3 {[%clk 0:02:17.4]} 12... h5 {[%clk
0:02:13.6]} 13. h3 {[%clk 0:02:00.6]} 13... Qe7 {[%clk 0:01:57]} 14. Raf1 {[%clk
0:01:55.1]} 14... Nd5 {[%clk 0:01:55.1]} 15. Qxe7 {[%clk 0:01:48.2]} 15... Nxe7
{[%clk 0:01:56]} 16. g4 {[%clk 0:01:38.5]} 16... hxg4 {[%clk 0:01:50.3]} 17.
hxg4 {[%clk 0:01:38.7]} 17... f6 {[%clk 0:01:45.6]} 18. Kg2 {[%clk 0:01:26.9]}
18... Kf7 {[%clk 0:01:45.1]} 19. Rh3 {[%clk 0:01:26.6]} 19... Rh8 {[%clk
0:01:45.5]} 20. Rfh1 {[%clk 0:01:26.5]} 20... Rxh3 {[%clk 0:01:45.8]} 21. Rxh3
{[%clk 0:01:27.4]} 21... Kg8 {[%clk 0:01:40.9]} 22. Kf3 {[%clk 0:01:22.2]} 22...
a5 {[%clk 0:01:39]} 23. Na4 {[%clk 0:01:20.9]} 23... Rb8 {[%clk 0:01:38.2]} 24.
c4 {[%clk 0:01:19.7]} 24... Rb7 {[%clk 0:01:37.3]} 25. b3 {[%clk 0:01:19.4]}
25... Nc8 {[%clk 0:01:37.5]} 26. d4 {[%clk 0:01:13.5]} 26... cxd4 {[%clk
0:01:36.6]} 27. Bxd4 {[%clk 0:01:14.4]} 27... c5 {[%clk 0:01:36.9]} 28. Bc3
{[%clk 0:01:12.7]} 28... Rd7 {[%clk 0:01:36.5]} 29. Ke2 {[%clk 0:01:12.4]} 29...
Kf7 {[%clk 0:01:36.2]} 30. e5 {[%clk 0:00:54.1]} 30... fxe5 {[%clk 0:01:30.7]}
31. fxe5 {[%clk 0:00:50.7]} 31... g5 {[%clk 0:01:26.8]} 32. Rf3+ {[%clk
0:00:48.4]} 32... Kg6 {[%clk 0:01:26.4]} 33. Rd3 {[%clk 0:00:48.1]} 33... Rxd3
{[%clk 0:01:24]} 34. Kxd3 {[%clk 0:00:49]} 34... Bf8 {[%clk 0:01:22.4]} 35. Ke4
{[%clk 0:00:48.2]} 35... Be7 {[%clk 0:01:22]} 36. Bd2 {[%clk 0:00:46]} 36... Bd8
{[%clk 0:01:21.9]} 37. Nc3 {[%clk 0:00:45.3]} 37... Ne7 {[%clk 0:01:20.8]} 38.
Nb5 {[%clk 0:00:44.7]} 38... Ng8 {[%clk 0:01:15.8]} 39. a3 {[%clk 0:00:42.1]}
39... Nh6 {[%clk 0:01:15.4]} 40. Kf3 {[%clk 0:00:42.8]} 40... Nf7 {[%clk
0:01:15.4]} 41. Ke4 {[%clk 0:00:43.1]} 41... Nh6 {[%clk 0:01:09.6]} 42. Kf3
{[%clk 0:00:42.9]} 42... Nf7 {[%clk 0:00:49.2]} 43. Bc3 {[%clk 0:00:43.2]} 43...
Be7 {[%clk 0:00:42.8]} 44. Nc7 {[%clk 0:00:38.1]} 44... Nd8 {[%clk 0:00:41.8]}
45. Na8 {[%clk 0:00:37.9]} 45... Nc6 {[%clk 0:00:31.5]} 46. Nxb6 {[%clk
0:00:35]} 46... Kf7 {[%clk 0:00:32.2]} 47. Ke4 {[%clk 0:00:25.2]} 47... Ke8
{[%clk 0:00:31.9]} 48. Na4 {[%clk 0:00:19.4]} 48... Kd7 {[%clk 0:00:31.7]} 49.
Nb2 {[%clk 0:00:15.8]} 49... Kc7 {[%clk 0:00:29.7]} 50. Nd3 {[%clk 0:00:12]}
50... Kb6 {[%clk 0:00:30.1]} 51. a4 {[%clk 0:00:06.8]} 51... Nd8 {[%clk
0:00:30]} 52. Ne1 {[%clk 0:00:07]} 52... Nf7 {[%clk 0:00:29]} 53. Nf3 {[%clk
0:00:07.3]} 53... Nh6 {[%clk 0:00:29.5]} 54. Nh2 {[%clk 0:00:07]} 54... Nf7
{[%clk 0:00:27.9]} 55. Bd2 {[%clk 0:00:05.8]} 55... Nh6 {[%clk 0:00:28.1]} 56.
Be3 {[%clk 0:00:05.7]} 56... Kc6 {[%clk 0:00:27.8]} 57. Nf3 {[%clk 0:00:03.7]}
57... Nxg4 {[%clk 0:00:27.8]} 58. Bxg5 {[%clk 0:00:03.3]} 58... Bf8 {[%clk
0:00:25.9]} 59. Bh4 {[%clk 0:00:02.9]} 59... Bh6 {[%clk 0:00:23.4]} 60. Bd8
{[%clk 0:00:03]} 60... Nf2# {[%clk 0:00:22.5]} 0-1

[Event "Late-Titled-Tuesday-Blitz-March-12-2024"]
[Site "Chess.com"]
[Date "2024.03.12"]
[Round "2"]
[White "thesupera12"]
[Black "Kosak12"]
[Result "0-1"]
[WhiteElo "2441"]
[BlackElo "2791"]
[TimeControl "180+1"]
[EndTime "14:17:54 PDT"]
[Termination "Kosak12 won by resignation"]

1. d4 {[%clk 0:02:59.1]} 1... Nf6 {[%clk 0:02:59.4]} 2. Bg5 {[%clk 0:02:50.6]}
2... g6 {[%clk 0:02:59.1]} 3. Bxf6 {[%clk 0:02:50.5]} 3... exf6 {[%clk 0:03:00]}
4. e3 {[%clk 0:02:50.8]} 4... Bg7 {[%clk 0:03:00.5]} 5. c4 {[%clk 0:02:51.6]}
5... O-O {[%clk 0:03:00.6]} 6. Nc3 {[%clk 0:02:52.3]} 6... f5 {[%clk 0:03:00.8]}
7. Nf3 {[%clk 0:02:51.8]} 7... Re8 {[%clk 0:02:59.5]} 8. g3 {[%clk 0:02:50.9]}
8... d6 {[%clk 0:02:55.5]} 9. Bg2 {[%clk 0:02:51.3]} 9... Nd7 {[%clk 0:02:55.9]}
10. O-O {[%clk 0:02:51.5]} 10... Nf6 {[%clk 0:02:56.2]} 11. Rc1 {[%clk
0:02:51.7]} 11... h5 {[%clk 0:02:55.6]} 12. b4 {[%clk 0:02:51.7]} 12... Bd7
{[%clk 0:02:53.8]} 13. c5 {[%clk 0:02:51.5]} 13... Bh6 {[%clk 0:02:43.1]} 14.
Qb3 {[%clk 0:02:45.2]} 14... a6 {[%clk 0:02:40.4]} 15. cxd6 {[%clk 0:02:37.6]}
15... cxd6 {[%clk 0:02:40.5]} 16. Nd5 {[%clk 0:02:30]} 16... Nxd5 {[%clk
0:02:39]} 17. Qxd5 {[%clk 0:02:29]} 17... Bc6 {[%clk 0:02:36.3]} 18. Qb3 {[%clk
0:02:25.6]} 18... Qd7 {[%clk 0:02:34.4]} 19. Rc3 {[%clk 0:02:16.2]} 19... Rac8
{[%clk 0:02:31]} 20. Rfc1 {[%clk 0:02:15.2]} 20... Bb5 {[%clk 0:02:13.7]} 21.
Nd2 {[%clk 0:01:46.7]} 21... h4 {[%clk 0:01:56.7]} 22. Bd5 {[%clk 0:01:34.8]}
22... Kg7 {[%clk 0:01:46.6]} 23. Nc4 {[%clk 0:01:14.6]} 23... hxg3 {[%clk
0:01:36.5]} 24. hxg3 {[%clk 0:01:12.5]} 24... Qe7 {[%clk 0:00:50.7]} 25. Nxd6
{[%clk 0:01:00.4]} 25... Qxd6 {[%clk 0:00:20]} 26. Rxc8 {[%clk 0:00:59]} 26...
Re7 {[%clk 0:00:20.7]} 27. a4 {[%clk 0:00:52.8]} 27... Bd7 {[%clk 0:00:19.4]}
28. R8c7 {[%clk 0:00:46.3]} 28... Rxe3 {[%clk 0:00:08.6]} 29. fxe3 {[%clk
0:00:39.9]} 29... Qxg3+ {[%clk 0:00:08.5]} 30. Kf1 {[%clk 0:00:20.2]} 30... Bxe3
{[%clk 0:00:08.6]} 31. R1c2 {[%clk 0:00:18.5]} 31... Qf4+ {[%clk 0:00:01.8]} 32.
Ke2 {[%clk 0:00:16.8]} 32... Qf2+ {[%clk 0:00:01.1]} 33. Kd3 {[%clk 0:00:16.6]}
33... Qe1 {[%clk 0:00:01.1]} 34. Rxd7 {[%clk 0:00:12.3]} 34... Bf4 {[%clk
0:00:01.4]} 35. Rxf7+ {[%clk 0:00:11.9]} 35... Kh6 {[%clk 0:00:01.6]} 36. Kc4
{[%clk 0:00:07.4]} 36... Qf1+ {[%clk 0:00:01.7]} 37. Qd3 {[%clk 0:00:07.3]}
37... b5+ {[%clk 0:00:01.2]} 38. axb5 {[%clk 0:00:07]} 38... axb5+ {[%clk
0:00:02.1]} 39. Kc3 {[%clk 0:00:07.6]} 39... Qa1+ {[%clk 0:00:02.8]} 40. Kb3
{[%clk 0:00:07.1]} 40... Qb1+ {[%clk 0:00:03.3]} 41. Ka3 {[%clk 0:00:06.2]}
41... Bc1+ {[%clk 0:00:03.4]} 42. Rxc1 {[%clk 0:00:06.1]} 42... Qxd3+ {[%clk
0:00:03.9]} 43. Kb2 {[%clk 0:00:06.5]} 43... Qxd4+ {[%clk 0:00:04.4]} 44. Kb1
{[%clk 0:00:06]} 44... Qxd5 {[%clk 0:00:04.2]} 45. Rfc7 {[%clk 0:00:04.3]} 45...
Qe4+ {[%clk 0:00:04.1]} 46. Kb2 {[%clk 0:00:04.2]} 46... Qxb4+ {[%clk
0:00:04.8]} 47. Ka2 {[%clk 0:00:04.2]} 47... Qa4+ {[%clk 0:00:05.2]} 48. Kb2
{[%clk 0:00:04.9]} 48... b4 {[%clk 0:00:04.4]} 49. Rc8 {[%clk 0:00:04.1]} 49...
Qa3+ {[%clk 0:00:04.5]} 50. Kb1 {[%clk 0:00:04.2]} 50... b3 {[%clk 0:00:04.9]}
51. R1c3 {[%clk 0:00:04.6]} 51... Qa2+ {[%clk 0:00:05]} 52. Kc1 {[%clk
0:00:05.4]} 52... b2+ {[%clk 0:00:05.9]} 53. Kd2 {[%clk 0:00:05]} 53... b1=Q+
{[%clk 0:00:06.8]} 0-1

[Event "Late-Titled-Tuesday-Blitz-March-12-2024"]
[Site "Chess.com"]
[Date "2024.03.12"]
[Round "2"]
[White "DucksParadise"]
[Black "Misterfox120"]
[Result "1-0"]
[WhiteElo "2568"]
[BlackElo "2374"]
[TimeControl "180+1"]
[EndTime "14:17:54 PDT"]
[Termination "DucksParadise won by resignation"]

1. e4 {[%clk 0:03:00.9]} 1... e5 {[%clk 0:02:58.2]} 2. Nf3 {[%clk 0:03:00.6]}
2... Nf6 {[%clk 0:02:56.9]} 3. d4 {[%clk 0:02:59]} 3... Nxe4 {[%clk 0:02:56.6]}
4. Bd3 {[%clk 0:02:58.9]} 4... d5 {[%clk 0:02:53.8]} 5. Nxe5 {[%clk 0:02:58.6]}
5... Nd7 {[%clk 0:02:54.3]} 6. Nxd7 {[%clk 0:02:58.1]} 6... Bxd7 {[%clk
0:02:55.2]} 7. Nd2 {[%clk 0:02:58.1]} 7... Nxd2 {[%clk 0:02:53.5]} 8. Bxd2
{[%clk 0:02:59]} 8... Qe7+ {[%clk 0:02:51.2]} 9. Qe2 {[%clk 0:02:54.8]} 9...
Qxe2+ {[%clk 0:02:50.7]} 10. Kxe2 {[%clk 0:02:55.7]} 10... Bd6 {[%clk
0:02:50.9]} 11. Rae1 {[%clk 0:02:40.1]} 11... f6 {[%clk 0:02:49.4]} 12. f3
{[%clk 0:02:39.2]} 12... Kf7 {[%clk 0:02:49]} 13. Kf2 {[%clk 0:02:39.8]} 13...
g6 {[%clk 0:02:43.2]} 14. h4 {[%clk 0:02:39.3]} 14... Rae8 {[%clk 0:02:38.5]}
15. g4 {[%clk 0:02:31.2]} 15... Rxe1 {[%clk 0:02:30.2]} 16. Rxe1 {[%clk
0:02:29]} 16... Re8 {[%clk 0:02:28.9]} 17. Rh1 {[%clk 0:02:28.1]} 17... c5
{[%clk 0:02:07.7]} 18. h5 {[%clk 0:02:17.8]} 18... Kg7 {[%clk 0:01:54.4]} 19. c3
{[%clk 0:01:57]} 19... cxd4 {[%clk 0:01:36.1]} 20. cxd4 {[%clk 0:01:57.9]} 20...
f5 {[%clk 0:01:31.5]} 21. h6+ {[%clk 0:01:40.7]} 21... Kf7 {[%clk 0:01:26]} 22.
g5 {[%clk 0:01:13.4]} 22... a6 {[%clk 0:01:15.4]} 23. a3 {[%clk 0:00:59.9]}
23... Rc8 {[%clk 0:01:08.7]} 24. Bb4 {[%clk 0:00:45.4]} 24... Bxb4 {[%clk
0:01:06.1]} 25. axb4 {[%clk 0:00:46.3]} 25... Bb5 {[%clk 0:01:01.2]} 26. Bxb5
{[%clk 0:00:30.7]} 26... axb5 {[%clk 0:00:48.5]} 27. Ra1 {[%clk 0:00:30.7]}
27... Ke6 {[%clk 0:00:30.9]} 28. Ke3 {[%clk 0:00:22.6]} 28... Kd6 {[%clk
0:00:23.7]} 29. Ra5 {[%clk 0:00:15.7]} 29... Kc6 {[%clk 0:00:23.9]} 30. Kf4
{[%clk 0:00:16]} 30... Re8 {[%clk 0:00:24]} 31. Ra3 {[%clk 0:00:15.6]} 31... Kd6
{[%clk 0:00:13.6]} 32. Rc3 {[%clk 0:00:15]} 32... b6 {[%clk 0:00:13.9]} 33. Ra3
{[%clk 0:00:14.4]} 33... Re7 {[%clk 0:00:14.6]} 34. Ra8 {[%clk 0:00:14.5]} 34...
Ke6 {[%clk 0:00:13.6]} 35. Rb8 {[%clk 0:00:14.2]} 35... Rc7 {[%clk 0:00:13.3]}
36. Rxb6+ {[%clk 0:00:14.3]} 36... Kd7 {[%clk 0:00:13.6]} 37. Rxb5 {[%clk
0:00:14.6]} 37... Rc4 {[%clk 0:00:11.5]} 38. Rxd5+ {[%clk 0:00:14.7]} 38... Ke6
{[%clk 0:00:12.2]} 39. Rd8 {[%clk 0:00:12.8]} 39... Rxb4 {[%clk 0:00:11.8]} 40.
Rh8 {[%clk 0:00:12.4]} 40... Rxd4+ {[%clk 0:00:12.2]} 41. Ke3 {[%clk 0:00:12.9]}
41... Rb4 {[%clk 0:00:11.1]} 42. Rxh7 {[%clk 0:00:13.2]} 42... f4+ {[%clk
0:00:11.5]} 43. Kd3 {[%clk 0:00:12.5]} 43... Kf5 {[%clk 0:00:12.1]} 44. Rg7
{[%clk 0:00:10.6]} 44... Rb8 {[%clk 0:00:11.7]} 45. h7 {[%clk 0:00:08.3]} 45...
Rh8 {[%clk 0:00:12.3]} 46. b4 {[%clk 0:00:08.6]} 46... Kxg5 {[%clk 0:00:12.1]}
47. b5 {[%clk 0:00:09.1]} 47... Kf6 {[%clk 0:00:11]} 48. Rc7 {[%clk 0:00:09.3]}
48... Rb8 {[%clk 0:00:10.9]} 49. b6 {[%clk 0:00:08.8]} 49... g5 {[%clk
0:00:11.5]} 50. b7 {[%clk 0:00:09.1]} 50... Rd8+ {[%clk 0:00:12.2]} 51. Ke4
{[%clk 0:00:08.9]} 51... Re8+ {[%clk 0:00:12.8]} 52. Kd4 {[%clk 0:00:09.4]}
52... Rd8+ {[%clk 0:00:13.4]} 53. Kc5 {[%clk 0:00:09.6]} 53... g4 {[%clk
0:00:13.5]} 54. fxg4 {[%clk 0:00:09.9]} 54... f3 {[%clk 0:00:14.2]} 55. Rc8
{[%clk 0:00:09.9]} 55... Rd1 {[%clk 0:00:14.6]} 56. h8=Q+ {[%clk 0:00:09.1]} 1-0

[Event "Late-Titled-Tuesday-Blitz-March-12-2024"]
[Site "Chess.com"]
[Date "2024.03.12"]
[Round "2"]
[White "pirulillo"]
[Black "jstopa4"]
[Result "0-1"]
[WhiteElo "2297"]
[BlackElo "2751"]
[TimeControl "180+1"]
[EndTime "14:17:55 PDT"]
[Termination "jstopa4 won by resignation"]

1. e4 {[%clk 0:02:56.9]} 1... e6 {[%clk 0:02:56.3]} 2. d3 {[%clk 0:02:55.9]}
2... d5 {[%clk 0:02:56.1]} 3. Nd2 {[%clk 0:02:55.7]} 3... Nc6 {[%clk 0:02:53.2]}
4. Ngf3 {[%clk 0:02:55.9]} 4... dxe4 {[%clk 0:02:50.3]} 5. dxe4 {[%clk
0:02:55.7]} 5... e5 {[%clk 0:02:49.9]} 6. Bb5 {[%clk 0:02:51.3]} 6... Bd6 {[%clk
0:02:43.3]} 7. Nc4 {[%clk 0:02:45.8]} 7... Qe7 {[%clk 0:02:22.6]} 8. Nxd6+
{[%clk 0:02:36.2]} 8... cxd6 {[%clk 0:02:22.7]} 9. b3 {[%clk 0:02:31.6]} 9...
Bg4 {[%clk 0:02:15.1]} 10. h3 {[%clk 0:02:27.5]} 10... Bh5 {[%clk 0:02:10.1]}
11. Ba3 {[%clk 0:02:24.1]} 11... Rd8 {[%clk 0:02:09.8]} 12. g4 {[%clk
0:02:14.5]} 12... Bg6 {[%clk 0:02:09.5]} 13. Qe2 {[%clk 0:02:14.4]} 13... Nf6
{[%clk 0:02:07.3]} 14. Bd3 {[%clk 0:01:55.2]} 14... O-O {[%clk 0:02:05.9]} 15.
c4 {[%clk 0:01:54.6]} 15... Qc7 {[%clk 0:02:00.6]} 16. O-O-O {[%clk 0:01:27.8]}
16... Qa5 {[%clk 0:01:55.2]} 17. Kb2 {[%clk 0:01:26.9]} 17... a6 {[%clk
0:01:47.7]} 18. h4 {[%clk 0:01:26.5]} 18... h5 {[%clk 0:01:42.1]} 19. g5 {[%clk
0:01:22.8]} 19... Ne8 {[%clk 0:01:35.7]} 20. Qd2 {[%clk 0:01:15.5]} 20... Qb6
{[%clk 0:01:29.8]} 21. Kb1 {[%clk 0:01:02.6]} 21... a5 {[%clk 0:01:21.1]} 22.
Ne1 {[%clk 0:00:42.3]} 22... Nc7 {[%clk 0:01:18.6]} 23. Nc2 {[%clk 0:00:41.8]}
23... Ne6 {[%clk 0:01:13.4]} 24. Ne3 {[%clk 0:00:41.2]} 24... Nf4 {[%clk
0:01:11.6]} 25. Nd5 {[%clk 0:00:37.7]} 25... Nxd5 {[%clk 0:01:11.3]} 26. exd5
{[%clk 0:00:37]} 26... e4 {[%clk 0:01:05.1]} 27. Bc2 {[%clk 0:00:33.7]} 27...
Nb4 {[%clk 0:01:05.4]} 28. Qe3 {[%clk 0:00:29.6]} 28... Qxe3 {[%clk 0:00:59.2]}
29. fxe3 {[%clk 0:00:30.5]} 29... Na6 {[%clk 0:00:42.6]} 30. Rhf1 {[%clk
0:00:23.9]} 30... b6 {[%clk 0:00:39.5]} 31. Rf4 {[%clk 0:00:21.6]} 31... Rfe8
{[%clk 0:00:38.4]} 32. Rd4 {[%clk 0:00:19.9]} 32... Nc5 {[%clk 0:00:36.8]} 33.
Bxc5 {[%clk 0:00:19.7]} 33... bxc5 {[%clk 0:00:36.8]} 34. Rd1 {[%clk 0:00:20]}
34... Rb8 {[%clk 0:00:34.9]} 35. a4 {[%clk 0:00:19.4]} 35... Rb4 {[%clk
0:00:34.6]} 36. Kb2 {[%clk 0:00:18.4]} 36... Reb8 {[%clk 0:00:34.8]} 37. Kc3
{[%clk 0:00:18.6]} 37... Kf8 {[%clk 0:00:33.6]} 38. Rdf1 {[%clk 0:00:18.6]}
38... Re8 {[%clk 0:00:32.8]} 39. R1f2 {[%clk 0:00:18.6]} 39... Re7 {[%clk
0:00:32.1]} 40. Rf1 {[%clk 0:00:19]} 40... Ke8 {[%clk 0:00:32.5]} 41. R1f2
{[%clk 0:00:19.3]} 41... Kd7 {[%clk 0:00:31.7]} 42. Rf1 {[%clk 0:00:19.7]} 42...
Rb8 {[%clk 0:00:32]} 43. R1f2 {[%clk 0:00:19.9]} 43... Rf8 {[%clk 0:00:32.7]}
44. Rf1 {[%clk 0:00:20.1]} 44... Rfe8 {[%clk 0:00:32.6]} 45. R1f2 {[%clk
0:00:20.3]} 45... Rf8 {[%clk 0:00:30.3]} 46. Rf1 {[%clk 0:00:20.5]} 46... Re5
{[%clk 0:00:30.3]} 47. R1f2 {[%clk 0:00:20.4]} 47... Ke7 {[%clk 0:00:30.4]} 48.
Rg2 {[%clk 0:00:17.8]} 48... Bf5 {[%clk 0:00:27]} 49. Bd1 {[%clk 0:00:16.9]}
49... g6 {[%clk 0:00:26.7]} 50. Rgf2 {[%clk 0:00:16.9]} 50... f6 {[%clk
0:00:25.7]} 51. Be2 {[%clk 0:00:17.1]} 51... fxg5 {[%clk 0:00:25.5]} 52. hxg5
{[%clk 0:00:18]} 52... Rh8 {[%clk 0:00:23.4]} 53. Bf1 {[%clk 0:00:16.9]} 53...
Kd7 {[%clk 0:00:20.5]} 54. Rh2 {[%clk 0:00:16.1]} 54... Re7 {[%clk 0:00:20.2]}
55. Bh3 {[%clk 0:00:16.3]} 55... Bxh3 {[%clk 0:00:19.1]} 56. Rxh3 {[%clk
0:00:16.4]} 56... Re5 {[%clk 0:00:19.4]} 57. Rf7+ {[%clk 0:00:14.4]} 57... Re7
{[%clk 0:00:19.7]} 58. Rf6 {[%clk 0:00:13.9]} 58... Rg8 {[%clk 0:00:20.1]} 59.
Rxh5 {[%clk 0:00:13.4]} 59... gxh5 {[%clk 0:00:19.9]} 0-1